[Event "EYCC Open U16 2018"]
[Site "Riga"]
[Date "2018.08.26"]
[Round "6"]
[White "Salemgareev, Tagir"]
[Black "Travadon, Loic"]
[Result "1-0"]
[ECO "A40"]
[WhiteElo "2375"]
[BlackElo "2334"]
[Annotator "NA"]
[PlyCount "97"]
[EventDate "2018.08.20"]
[EventType "swiss"]
[EventCountry "LAT"]
[SourceTitle "playchess.com"]
[Source "ChessBase"]
[SourceQuality "1"]
[TimeControl "40/5400+30:1800+30"]

1. d4 {[%emt 0:00:00]} Nf6 {[%emt 0:00:00]} 2. c4 {[%emt 0:00:00]} e6 {[%emt 0:00:00]} 3. g3 {[%emt 0:01:00]} Bb4+ {[%emt 0:00:00]} 4. Nd2 {[%emt 0:00:35]} d5 {[%emt 0:03:57]} 5. Bg2 {[%emt 0:00:17]} a5 {[%emt 0:02:54]} 6. Qc2 {[%emt 0:08:51]} dxc4 {[%emt 0:08:37]} 7. Qxc4 {[%emt 0:01:22]} O-O {[%emt 0:02:12]} 8. a3 {[%emt 0:03:47]} Be7 {[%emt 0:00:37]} 9. Ngf3 {[%emt 0:12:47]} Nbd7 {[%emt 0:00:30]} 10. O-O {[%emt 0:03:16]} b5 {[%emt 0:02:08]} 11. Qxb5 {[%emt 0:02:38]} Ba6 {[%emt 0:00:31]} 12. Qa4 {[%emt 0:00:15]} Bxe2 {[%emt 0:01:02]} 13. Re1 {[%emt 0:00:05]} Nb6 {[%emt 0:02:11]} 14. Qc2 {[%emt 0:03:55]} Bb5 {[%emt 0:06:58]} 15. Ne5 {[%emt 0:01:39]} Nbd5 {[%emt 0:02:57]} 16. Ne4 {[%emt 0:04:14]} Nxe4 {[%emt 0:01:41]} 17. Bxe4 {[%emt 0:00:22]} f5 {[%emt 0:01:11]} 18. Bg2 {[%emt 0:01:36]} Bf6 {[%emt 0:02:08]} 19. Bd2 {[%emt 0:00:46]} Qd6 {[%emt 0:03:10]} 20. Rac1 {[%emt 0:01:03]} Rfb8 {[%emt 0:08:26]} 21. h4 {[%emt 0:07:26]} h6 $16 {[%emt 0:03:15]} (21... a4 $142) 22. h5 {[%emt 0:09:09]} Be8 {[%emt 0:00:22]} 23. Nc4 {[%emt 0:07:22]} Qd7 {[%emt 0:00:23]} 24. Nxa5 {[%emt 0:03:35]} Bxd4 {[%emt 0:00:46]} 25. b4 {[%emt 0:00:56]} c5 {[%emt 0:02:27]} 26. Nb3 {[%emt 0:01:11]} Rxa3 {[%emt 0:04:56]} 27. Nxc5 {[%emt 0:00:26]} Bxc5 {[%emt 0:00:04]} 28. bxc5 {[%emt 0:00:11]} Ra6 {[%emt 0:02:47]} 29. Re5 {[%emt 0:06:02]} Bxh5 {[%emt 0:02:25]} 30. c6 {[%emt 0:01:06]} Qd6 {[%emt 0:00:48]} 31. Rxd5 {[%emt 0:00:18]} exd5 {[%emt 0:00:47]} 32. Bf4 {[%emt 0:00:05]} Rxc6 {[%emt 0:01:20]} 33. Bxd6 {[%emt 0:01:07]} Rxc2 {[%emt 0:00:01]} 34. Bxd5+ {[%emt 0:00:07]} Bf7 {[%emt 0:00:18]} 35. Bxf7+ {[%emt 0:00:04]} Kxf7 {[%emt 0:00:02]} 36. Rxc2 {[%emt 0:00:08]} Re8 {[%emt 0:02:09]} 37. Kg2 {[%emt 0:00:41]} g5 {[%emt 0:00:17]} 38. Ba3 {[%emt 0:02:22]} Ra8 {[%emt 0:00:49]} 39. Bb2 {[%emt 0:00:58]} Ra2 {[%emt 0:00:18]} 40. Rc7+ {[%emt 0:00:00]} Kg6 {[%emt 0:00:00]} 41. Rc6+ {[%emt 0:00:15]} Kh5 {[%emt 0:01:07]} 42. Bg7 {[%emt 0:00:21]} Kg4 {[%emt 0:00:53]} 43. Bxh6 {[%emt 0:00:35]} Rb2 {[%emt 0:00:36]} 44. Rg6 {[%emt 0:00:37]} Kh5 {[%emt 0:00:07]} 45. Rxg5+ {[%emt 0:00:06]} Kxh6 {[%emt 0:00:04]} 46. Rxf5 {[%emt 0:00:05]} Kg6 {[%emt 0:00:09]} 47. Rc5 {[%emt 0:00:06]} Ra2 {[%emt 0:00:06]} 48. g4 {[%emt 0:00:10]} Ra3 {[%emt 0:00:11]} 49. f3 {[%emt 0:00:07]} 1-0

[Event "EYCC Open U16 2018"]
[Site "Riga"]
[Date "2018.08.26"]
[Round "6"]
[White "Shubin, Kirill"]
[Black "Haring, Filip"]
[Result "1-0"]
[ECO "B42"]
[WhiteElo "2374"]
[BlackElo "2263"]
[Annotator "NA"]
[PlyCount "75"]
[EventDate "2018.08.20"]
[EventType "swiss"]
[EventCountry "LAT"]
[SourceTitle "playchess.com"]
[Source "ChessBase"]
[SourceQuality "1"]
[TimeControl "40/5400+30:1800+30"]

1. e4 {[%emt 0:00:00]} c5 {[%emt 0:00:00]} 2. Nf3 {[%emt 0:00:00]} e6 {[%emt 0:00:19]} 3. d4 {[%emt 0:00:00]} cxd4 {[%emt 0:00:11]} 4. Nxd4 {[%emt 0:00:00]} a6 {[%emt 0:00:47]} 5. Bd3 {[%emt 0:00:00]} Bc5 {[%emt 0:00:44]} 6. Nb3 {[%emt 0:00:01]} Be7 {[%emt 0:00:38]} 7. c4 {[%emt 0:02:32]} d6 {[%emt 0:00:53]} 8. Nc3 {[%emt 0:01:03]} Nf6 {[%emt 0:00:38]} 9. O-O {[%emt 0:00:42]} O-O {[%emt 0:00:22]} 10. Be3 {[%emt 0:01:13] B42: Sicilian: Kan Variation: 5 Bd3} Qc7 {[%emt 0:00:43]} (10... b6 11. a4 Nc6 12. f3 Nd7 13. Qd2 Nc5 14. Bc2 Nb4 15. Nd4 Bb7 16. Nce2 Nxc2 17. Qxc2 Qc7 {0-1 (41) Roganovic,M (2524)-Markus,R (2623) Belgrade 2014}) 11. f4 {[%emt 0:03:14]} b6 {[%emt 0:07:04] LiveBook: 4 Games} 12. Qf3 {[%emt 0:04:19]} Bb7 {[%emt 0:03:11]} 13. Qh3 {[%emt 0:00:05]} Nbd7 {[%emt 0:03:58]} 14. Rae1 {[%emt 0:01:29] [#]} Rad8 $146 {[%emt 0:11:43]} ({Better is} 14... h5 $14) ({Predecessor:} 14... g6 15. Nd2 Rfe8 16. Kh1 Bf8 17. Nf3 Bg7 18. Ng5 Rad8 19. Bb1 h6 20. Nxf7 Kxf7 {1-0 (48) Zhang,X (2367)-Gunina,V (2514) Wuxi 2013}) 15. Bd4 {[%emt 0:06:04]} e5 {[%emt 0:13:58]} 16. Be3 {[%emt 0:04:57]} Nc5 {[%emt 0:04:16]} 17. Nxc5 {[%emt 0:02:21]} dxc5 {[%emt 0:02:18]} 18. Nd5 {[%emt 0:01:13]} Bxd5 {[%emt 0:15:19]} 19. exd5 {[%emt 0:03:11]} e4 {[%emt 0:00:56]} 20. Bb1 {[%emt 0:00:46]} Bd6 $16 {[%emt 0:09:04]} 21. Bd2 {[%emt 0:00:47]} Rfe8 {[%emt 0:01:59]} 22. Bc3 {[%emt 0:02:35]} Qe7 {[%emt 0:02:06]} 23. g4 {[%emt 0:10:25]} g6 {[%emt 0:08:18]} 24. Qh6 {[%emt 0:05:55]} e3 {[%emt 0:00:03]} 25. Rf3 {[%emt 0:00:26]} e2 {[%emt 0:09:01]} 26. Bd3 {[%emt 0:00:13]} Qd7 {[%emt 0:03:43]} 27. Bxf6 {[%emt 0:00:10]} Bf8 {[%emt 0:00:06]} 28. Qh3 {[%emt 0:00:23]} Qa4 {[%emt 0:00:53]} 29. g5 {[%emt 0:01:01]} Bg7 {[%emt 0:00:18]} 30. Bxg7 {[%emt 0:00:55]} Kxg7 {[%emt 0:00:42]} 31. Qh6+ {[%emt 0:02:39]} Kg8 {[%emt 0:00:03]} 32. Rh3 {[%emt 0:00:08]} Qd1 {[%emt 0:00:03]} 33. Qxh7+ {[%emt 0:00:12]} Kf8 {[%emt 0:00:05]} 34. Qh8+ {[%emt 0:00:05]} Ke7 {[%emt 0:00:03]} 35. Qc3 {[%emt 0:00:22]} Kd7 {[%emt 0:00:15]} 36. Bc2 {[%emt 0:00:30]} Qd4+ {[%emt 0:00:27]} 37. Qxd4 {[%emt 0:00:07]} cxd4 {[%emt 0:00:04]} 38. Bd3 {[%emt 0:00:12]} 1-0

[Event "EYCC Open U16 2018"]
[Site "Riga"]
[Date "2018.08.26"]
[Round "6"]
[White "Remizov, Yaroslav"]
[Black "Petriashvili, Nikoloz"]
[Result "1/2-1/2"]
[ECO "C47"]
[WhiteElo "2317"]
[BlackElo "2323"]
[Annotator "NA"]
[PlyCount "109"]
[EventDate "2018.08.20"]
[EventType "swiss"]
[EventCountry "LAT"]
[SourceTitle "playchess.com"]
[Source "ChessBase"]
[SourceQuality "1"]
[TimeControl "40/5400+30:1800+30"]

1. e4 {[%emt 0:00:00]} e5 {[%emt 0:00:00]} 2. Nf3 {[%emt 0:00:00]} Nc6 {[%emt 0:00:00]} 3. Nc3 {[%emt 0:00:00]} Nf6 {[%emt 0:03:14]} 4. Be2 {[%emt 0:00:00]} d5 {[%emt 0:08:12]} 5. exd5 {[%emt 0:00:25]} Nxd5 {[%emt 0:00:40]} 6. O-O {[%emt 0:00:03]} Be7 {[%emt 0:02:46] C47: Scotch Four Knights and Four Knights with 4 g3} (6... Nxc3 7. bxc3 e4 8. Ne1 Bd6 9. f3 f5 10. fxe4 fxe4 11. Rb1 Qe7 12. d4 exd3 13. cxd3 Bd7 14. Rxb7 O-O-O 15. Rb2 {1-0 (29) Van Foreest,J (2629)-Giri,A (2752) Amstelveen 2017}) 7. Bb5 {[%emt 0:05:11]} Nxc3 {[%emt 0:08:47]} 8. bxc3 {[%emt 0:00:05]} e4 {[%emt 0:02:27]} 9. Nd4 {[%emt 0:00:09]} Bd7 {[%emt 0:05:42]} 10. Bxc6 $146 {[%emt 0:00:12]} ({Predecessor:} 10. Nxc6 bxc6 11. Bc4 O-O 12. Qe2 Bf5 13. f3 Bc5+ 14. Kh1 {1-0 (49) Nagy,G (2377)-Pesztericz,L (2065) Banska Stiavnica 2015}) 10... bxc6 {[%emt 0:00:11]} 11. Qe2 {[%emt 0:00:44]} c5 {[%emt 0:20:19]} 12. Nb3 {[%emt 0:00:03]} O-O {[%emt 0:02:26]} 13. Qxe4 {[%emt 0:08:31]} Re8 {[%emt 0:00:14]} 14. d3 {[%emt 0:03:12]} Bd6 {[%emt 0:00:46]} 15. Qf3 {[%emt 0:02:36]} c4 {[%emt 0:03:50]} 16. Nd4 {[%emt 0:23:45]} c5 {[%emt 0:14:04]} 17. Nf5 {[%emt 0:01:45]} Be5 {[%emt 0:00:43]} 18. dxc4 {[%emt 0:13:45]} Qf6 {[%emt 0:00:54]} 19. Ne3 {[%emt 0:11:18]} Qxf3 {[%emt 0:00:28]} 20. gxf3 {[%emt 0:00:05]} Bxc3 {[%emt 0:09:11]} 21. Rb1 {[%emt 0:01:26]} Bh3 {[%emt 0:01:43]} 22. Rd1 {[%emt 0:01:29]} Bd4 {[%emt 0:00:07]} 23. Nd5 {[%emt 0:14:13]} Bf5 {[%emt 0:02:02]} 24. Be3 {[%emt 0:00:26]} Bxc2 {[%emt 0:03:46]} 25. Bxd4 {[%emt 0:00:12]} Bxb1 {[%emt 0:01:15]} 26. Bxc5 {[%emt 0:00:37]} Bxa2 {[%emt 0:01:45]} 27. Ra1 {[%emt 0:04:25]} Bxc4 {[%emt 0:03:05]} 28. Nc7 {[%emt 0:00:03]} a6 {[%emt 0:01:55]} 29. Nxa8 {[%emt 0:04:10]} Rxa8 {[%emt 0:00:04]} 30. Bb6 {[%emt 0:00:36]} f6 {[%emt 0:01:51]} 31. Kg2 {[%emt 0:00:47]} Rb8 {[%emt 0:00:04]} 32. Be3 {[%emt 0:00:19]} Rb7 {[%emt 0:00:36]} 33. Rc1 {[%emt 0:01:12]} Rc7 {[%emt 0:00:47]} 34. Rd1 {[%emt 0:00:54]} Kf7 {[%emt 0:00:27]} 35. Rd8 {[%emt 0:00:09]} Ke6 {[%emt 0:00:08]} 36. Rh8 {[%emt 0:01:51]} h6 {[%emt 0:00:53]} 37. Kg3 {[%emt 0:01:43]} Bd5 {[%emt 0:00:10]} 38. Re8+ {[%emt 0:01:52]} Kd7 {[%emt 0:00:20]} 39. Rb8 {[%emt 0:00:20]} Ke6 {[%emt 0:02:15]} 40. Re8+ {[%emt 0:00:00]} Kf5 {[%emt 0:00:00]} 41. Rb8 {[%emt 0:01:54]} Rc6 {[%emt 0:05:15]} 42. h4 {[%emt 0:01:17]} Bc4 {[%emt 0:01:06]} 43. Rb7 {[%emt 0:00:39]} g5 {[%emt 0:01:47]} 44. hxg5 {[%emt 0:00:03]} fxg5 {[%emt 0:00:24]} 45. Ra7 {[%emt 0:01:21]} h5 {[%emt 0:02:54]} 46. Rg7 {[%emt 0:02:45]} Rg6 {[%emt 0:04:38]} 47. Rc7 $15 {[%emt 0:00:04]} h4+ {[%emt 0:00:10]} 48. Kh2 {[%emt 0:02:04]} Bd5 {[%emt 0:01:54]} 49. Rc5 {[%emt 0:00:14]} Rd6 {[%emt 0:00:05]} 50. Ra5 {[%emt 0:00:24]} Kg6 {[%emt 0:02:34]} 51. Bc5 {[%emt 0:00:57]} Rc6 {[%emt 0:05:26]} 52. Be3 {[%emt 0:00:23]} Rd6 {[%emt 0:00:04]} 53. Bc5 {[%emt 0:00:04]} Rc6 {[%emt 0:00:02]} 54. Be3 {[%emt 0:00:14]} Bxf3 {[%emt 0:00:17]} 55. Bxg5 {[%emt 0:00:28]} 1/2-1/2

[Event "EYCC Open U16 2018"]
[Site "Riga"]
[Date "2018.08.26"]
[Round "6"]
[White "Stefansson, Vignir Vatnar"]
[Black "Baenziger, Fabian"]
[Result "1/2-1/2"]
[ECO "A45"]
[WhiteElo "2260"]
[BlackElo "2373"]
[Annotator "NA"]
[PlyCount "112"]
[EventDate "2018.08.20"]
[EventType "swiss"]
[EventCountry "LAT"]
[SourceTitle "playchess.com"]
[Source "ChessBase"]
[SourceQuality "1"]
[TimeControl "40/5400+30:1800+30"]

1. d4 {[%emt 0:00:00]} Nf6 {[%emt 0:00:00]} 2. Bg5 {[%emt 0:00:00]} Ne4 {[%emt 0:00:00]} 3. Bf4 {[%emt 0:00:00]} d5 {[%emt 0:01:01]} 4. e3 {[%emt 0:00:00]} c5 {[%emt 0:00:10]} 5. c3 {[%emt 0:00:32]} Nc6 {[%emt 0:00:12] A45: Trompowsky Attack} 6. Bd3 {[%emt 0:00:12]} Nf6 {[%emt 0:01:05]} 7. Nd2 {[%emt 0:00:37]} Bg4 {[%emt 0:00:31]} (7... Qb6 8. Rb1 Bg4 9. Ngf3 e6 10. Qa4 Be7 11. Ne5 O-O 12. Bg5 c4 13. Bc2 Bh5 14. Bxf6 gxf6 {1-0 (52) Mchedlishvili,M (2603)-Amin,B (2689) Riadh 2017}) 8. Ngf3 {[%emt 0:01:35]} Rc8 {[%emt 0:02:01]} 9. O-O {[%emt 0:07:26]} e6 {[%emt 0:01:49]} 10. Qa4 {[%emt 0:09:14]} Nd7 {[%emt 0:04:04]} 11. Rae1 {[%emt 0:22:37]} ({Predecessor:} 11. Ne5 Ndxe5 12. Bxe5 Qd7 13. Bg3 Bh5 14. dxc5 Bxc5 {½-½ (114) Druska,J (2457)-Cernousek,L (2494) Czech Republic 2016}) 11... a6 {[%emt 0:14:29]} 12. Bb1 {[%emt 0:05:47]} Be7 {[%emt 0:06:49]} 13. Ne5 {[%emt 0:15:46]} Ndxe5 {[%emt 0:09:03]} 14. Bxe5 {[%emt 0:00:28]} O-O {[%emt 0:00:57]} 15. Bg3 {[%emt 0:00:48]} cxd4 {[%emt 0:12:53]} 16. exd4 {[%emt 0:01:08]} Na5 {[%emt 0:01:40]} 17. b4 {[%emt 0:11:10]} Nc4 {[%emt 0:01:35]} 18. Nxc4 {[%emt 0:00:05]} Rxc4 {[%emt 0:00:07]} 19. Qb3 {[%emt 0:00:02]} Bh5 {[%emt 0:08:50]} 20. f4 {[%emt 0:00:54]} Qc8 {[%emt 0:04:59]} 21. Re3 {[%emt 0:00:14]} Bf6 {[%emt 0:00:30]} 22. Be1 {[%emt 0:02:09]} Bg6 {[%emt 0:01:22]} 23. Bxg6 {[%emt 0:00:39]} hxg6 {[%emt 0:00:56]} 24. g4 {[%emt 0:00:41]} g5 {[%emt 0:03:58]} 25. Bg3 {[%emt 0:07:12]} Qc6 {[%emt 0:06:45]} 26. Kg2 {[%emt 0:04:21]} Rc8 {[%emt 0:00:56]} 27. Rff3 {[%emt 0:00:08]} Qd7 {[%emt 0:03:08]} 28. h3 {[%emt 0:04:03]} a5 {[%emt 0:03:14]} 29. a3 {[%emt 0:00:05]} axb4 {[%emt 0:01:21]} 30. axb4 {[%emt 0:00:05]} Ra8 {[%emt 0:01:05]} 31. Re2 {[%emt 0:01:39]} Qc6 {[%emt 0:00:55]} 32. Rb2 {[%emt 0:03:17]} Ra1 {[%emt 0:01:09]} 33. Rd2 {[%emt 0:00:38]} Qa6 {[%emt 0:01:41]} 34. Qb2 {[%emt 0:01:23]} Be7 {[%emt 0:03:10]} 35. Re2 {[%emt 0:00:30]} Ra3 {[%emt 0:01:06]} 36. Rd2 {[%emt 0:00:41]} Qa4 {[%emt 0:00:37]} 37. f5 {[%emt 0:00:58]} exf5 {[%emt 0:00:43]} 38. gxf5 {[%emt 0:00:09]} Rb3 {[%emt 0:00:12]} 39. Qa2 {[%emt 0:00:28]} Ra3 {[%emt 0:02:48]} 40. Qb2 {[%emt 0:00:00]} Bf6 {[%emt 0:00:00]} 41. Bd6 {[%emt 0:11:48]} Rc8 {[%emt 0:08:46]} 42. Re2 $1 {[%emt 0:02:55]} Rb3 {[%emt 0:01:37]} 43. Qa2 {[%emt 0:00:50]} Ra3 {[%emt 0:05:55]} 44. Qb2 {[%emt 0:04:10]} Ra1 {[%emt 0:00:59]} 45. Qd2 {[%emt 0:01:54]} Re8 {[%emt 0:03:35]} 46. Be5 {[%emt 0:01:25]} Bd8 {[%emt 0:02:03]} 47. Rf1 {[%emt 0:01:58]} Rxf1 {[%emt 0:02:49]} 48. Kxf1 {[%emt 0:00:05]} Qd7 {[%emt 0:00:03]} 49. Qd3 {[%emt 0:00:19]} f6 {[%emt 0:00:06]} 50. Bg3 {[%emt 0:00:27]} Re4 {[%emt 0:00:06]} 51. Qf3 {[%emt 0:01:49]} Rxe2 {[%emt 0:01:39]} 52. Kxe2 {[%emt 0:00:09]} b5 {[%emt 0:00:02]} 53. Kd2 $11 {[%emt 0:00:42]} Bb6 {[%emt 0:01:36]} 54. Bh2 {[%emt 0:00:10]} Bd8 {[%emt 0:01:05]} 55. Bg3 {[%emt 0:00:07]} Bb6 {[%emt 0:01:00]} 56. Bh2 {[%emt 0:00:06]} Bd8 {[%emt 0:00:03]} 1/2-1/2

[Event "EYCC Open U16 2018"]
[Site "Riga"]
[Date "2018.08.26"]
[Round "6"]
[White "Postnikov, Roman"]
[Black "Martinovici, Ilie"]
[Result "1-0"]
[ECO "D30"]
[WhiteElo "2070"]
[BlackElo "2358"]
[Annotator "NA"]
[PlyCount "57"]
[EventDate "2018.08.20"]
[EventType "swiss"]
[EventCountry "LAT"]
[SourceTitle "playchess.com"]
[Source "ChessBase"]
[SourceQuality "1"]
[TimeControl "40/5400+30:1800+30"]

1. d4 {[%emt 0:00:00]} d5 {[%emt 0:00:00]} 2. c4 {[%emt 0:00:00]} e6 {[%emt 0:00:00]} 3. Nf3 {[%emt 0:00:00]} c6 {[%emt 0:00:00]} 4. Nc3 {[%emt 0:00:46]} f5 {[%emt 0:00:05]} 5. g3 {[%emt 0:00:52]} Nf6 {[%emt 0:00:08]} 6. Bg2 {[%emt 0:00:20]} Bd6 {[%emt 0:00:22]} 7. O-O {[%emt 0:01:05]} O-O {[%emt 0:00:37]} 8. Qc2 {[%emt 0:00:50]} Ne4 {[%emt 0:02:52]} 9. Nd2 {[%emt 0:02:40]} Nd7 {[%emt 0:04:42]} 10. Ndxe4 {[%emt 0:08:56]} dxe4 {[%emt 0:05:33]} 11. Rd1 {[%emt 0:05:26]} Qe7 {[%emt 0:01:34]} 12. Qb3 {[%emt 0:14:23]} Kh8 {[%emt 0:04:37]} 13. Rb1 $11 {[%emt 0:06:48]} a6 {[%emt 0:29:46]} 14. d5 {[%emt 0:04:52]} cxd5 {[%emt 0:05:09]} 15. cxd5 {[%emt 0:00:10]} b5 {[%emt 0:14:56]} 16. h4 {[%emt 0:10:40]} Nc5 {[%emt 0:03:45]} 17. Qc2 {[%emt 0:00:50]} e5 {[%emt 0:06:28]} 18. b4 {[%emt 0:06:35]} Nd7 {[%emt 0:00:37]} 19. a4 {[%emt 0:01:23]} bxa4 {[%emt 0:01:24]} 20. Nxa4 {[%emt 0:00:38]} a5 {[%emt 0:02:28]} 21. Bg5 {[%emt 0:03:16]} Qf7 {[%emt 0:00:22]} 22. bxa5 {[%emt 0:02:19]} Rxa5 {[%emt 0:00:01]} 23. Nb6 {[%emt 0:01:11]} Nxb6 {[%emt 0:10:47]} 24. Rxb6 {[%emt 0:00:13]} Bc5 {[%emt 0:00:09]} 25. Rc6 {[%emt 0:00:28]} Qa7 {[%emt 0:00:01]} 26. d6 {[%emt 0:03:29]} Bxf2+ {[%emt 0:00:03]} 27. Kh1 {[%emt 0:00:24]} Bc5 {[%emt 0:06:02]} 28. Rxc8 {[%emt 0:00:52]} Rxc8 {[%emt 0:00:13]} 29. d7 {[%emt 0:00:05]} 1-0

[Event "EYCC Open U16 2018"]
[Site "Riga"]
[Date "2018.08.27"]
[Round "7"]
[White "Yeritsyan, Aram"]
[Black "Gorshtein, Ido"]
[Result "1/2-1/2"]
[ECO "B12"]
[WhiteElo "2330"]
[BlackElo "2375"]
[Annotator "ChessBase"]
[PlyCount "88"]
[EventDate "2018.08.20"]
[EventType "swiss"]
[EventCountry "LAT"]
[TimeControl "40/5400+30:1800+30"]

1. e4 {[%emt 0:00:00]} c6 {[%emt 0:00:00]} 2. d4 {[%emt 0:00:00]} d5 {[%emt 0:00:00]} 3. e5 {[%emt 0:00:00]} Bf5 {[%emt 0:00:00]} 4. h4 {[%emt 0:00:00]} Qc7 {[%emt 0:00:00]} 5. Nc3 {[%emt 0:04:09]} a6 {[%emt 0:00:00]} 6. g4 {[%emt 0:02:40]} Bd7 {[%emt 0:00:00]} 7. h5 {[%emt 0:00:10]} e6 {[%emt 0:03:02]} 8. f4 {[%emt 0:06:33]} c5 {[%emt 0:00:06]} 9. Nf3 {[%emt 0:01:43]} Qb6 {[%emt 0:13:40]} 10. Ne2 {[%emt 0:13:59]} Bb5 {[%emt 0:03:20]} 11. c3 {[%emt 0:00:07]} Nc6 {[%emt 0:00:09]} 12. Be3 {[%emt 0:00:30]} Rc8 {[%emt 0:03:26]} 13. Qd2 {[%emt 0:02:45]} Bxe2 {[%emt 0:11:12]} 14. Bxe2 {[%emt 0:00:18]} cxd4 {[%emt 0:00:03]} 15. Nxd4 {[%emt 0:01:27]} Nxd4 {[%emt 0:01:16]} 16. Bxd4 {[%emt 0:00:13]} Bc5 {[%emt 0:00:02]} 17. Bxc5 {[%emt 0:26:07]} Qxc5 {[%emt 0:00:10]} 18. f5 {[%emt 0:01:12]} Ne7 {[%emt 0:03:23]} 19. h6 {[%emt 0:04:06]} g6 {[%emt 0:01:32]} 20. fxe6 {[%emt 0:00:06]} fxe6 {[%emt 0:02:02]} 21. Rf1 {[%emt 0:00:02]} Kd7 {[%emt 0:05:56]} 22. O-O-O {[%emt 0:02:38]} Rhf8 {[%emt 0:00:12]} 23. Kb1 {[%emt 0:10:17]} b5 {[%emt 0:04:43]} 24. Qg5 {[%emt 0:03:37]} Ng8 {[%emt 0:10:31]} 25. Bd3 {[%emt 0:01:46]} Rxf1 {[%emt 0:04:11]} 26. Rxf1 {[%emt 0:00:21]} Rf8 {[%emt 0:00:01]} 27. Rxf8 {[%emt 0:01:29]} Qxf8 {[%emt 0:00:07]} 28. Qe3 {[%emt 0:02:26]} Qb8 {[%emt 0:01:01]} 29. Qf4 {[%emt 0:06:05]} Ne7 {[%emt 0:03:00]} 30. a4 {[%emt 0:00:25]} bxa4 {[%emt 0:05:31]} 31. Qxa4+ {[%emt 0:00:18]} Nc6 {[%emt 0:01:20]} 32. Bxa6 {[%emt 0:01:36]} Kc7 {[%emt 0:03:17]} 33. Qa3 {[%emt 0:04:35]} Kb6 {[%emt 0:00:37]} 34. Bd3 {[%emt 0:02:10]} Qxe5 {[%emt 0:01:54]} 35. Qa6+ {[%emt 0:00:11]} Kc7 {[%emt 0:01:32]} 36. Bb5 {[%emt 0:00:03]} Qd6 {[%emt 0:01:40]} 37. Kc2 {[%emt 0:01:18]} Qc5 {[%emt 0:03:10]} 38. Bxc6 {[%emt 0:02:41]} Qxc6 {[%emt 0:00:06]} 39. Qa7+ {[%emt 0:00:22]} Kd6 {[%emt 0:01:24]} 40. g5 {[%emt 0:00:00]} Qb5 {[%emt 0:00:00]} 41. Qf2 {[%emt 0:03:29]} Qa4+ {[%emt 0:05:57]} 42. Kd2 {[%emt 0:00:08]} Qe4 {[%emt 0:03:12]} 43. Qf8+ {[%emt 0:00:09]} Kd7 {[%emt 0:01:33]} 44. Qf7+ {[%emt 0:01:30]} Kd6 {[%emt 0:00:12]} 1/2-1/2

[Event "EYCC Open U16 2018"]
[Site "Riga"]
[Date "2018.08.29"]
[Round "9"]
[White "Globus, Or"]
[Black "Degraeve, Remy"]
[Result "0-1"]
[ECO "E06"]
[WhiteElo "2402"]
[BlackElo "2322"]
[Annotator "RC"]
[PlyCount "134"]
[EventDate "2018.08.20"]
[EventType "swiss"]
[EventCountry "LAT"]
[SourceTitle "playchess.com"]
[Source "ChessBase"]
[SourceQuality "1"]
[TimeControl "40/5400+30:1800+30"]

1. d4 {[%emt 0:00:00]} Nf6 {[%emt 0:00:00]} 2. c4 {[%emt 0:00:00]} e6 {[%emt 0:00:00]} 3. g3 {[%emt 0:00:00]} d5 {[%emt 0:00:00]} 4. Nf3 {[%emt 0:00:00]} Be7 {[%emt 0:00:00]} 5. Bg2 {[%emt 0:00:02]} O-O {[%emt 0:00:00]} 6. O-O {[%emt 0:00:09]} dxc4 {[%emt 0:00:00]} 7. Qc2 {[%emt 0:00:12]} a6 {[%emt 0:00:00]} 8. a4 {[%emt 0:00:50]} Bd7 {[%emt 0:00:00]} 9. Rd1 {[%emt 0:02:10]} Bc6 {[%emt 0:02:30]} 10. Nc3 {[%emt 0:01:10]} Nbd7 {[%emt 0:11:37]} 11. e4 {[%emt 0:03:47]} b5 {[%emt 0:02:26]} 12. d5 {[%emt 0:05:12]} exd5 {[%emt 0:01:03]} 13. e5 {[%emt 0:00:33]} Ng4 {[%emt 0:03:42]} 14. Nxd5 {[%emt 0:08:55]} Bxd5 {[%emt 0:05:56]} 15. Rxd5 {[%emt 0:02:47]} c6 {[%emt 0:00:39]} 16. Rd4 {[%emt 0:10:52]} Nxf2 {[%emt 0:05:48]} 17. Qxf2 {[%emt 0:19:22]} Bc5 {[%emt 0:00:12]} 18. Be3 {[%emt 0:03:57]} Bxd4 {[%emt 0:00:05]} 19. Nxd4 {[%emt 0:03:00]} Nxe5 {[%emt 0:01:59]} 20. Nxc6 {[%emt 0:01:55]} Nxc6 {[%emt 0:00:04]} 21. Bxc6 {[%emt 0:00:05]} Rc8 {[%emt 0:00:06]} 22. Bb7 {[%emt 0:02:10]} Rb8 {[%emt 0:00:48]} 23. Bxa6 {[%emt 0:01:37]} Qa5 {[%emt 0:00:15]} 24. Bc5 {[%emt 0:02:55]} Qxa6 {[%emt 0:01:15]} 25. Bxf8 {[%emt 0:00:13]} Rxf8 {[%emt 0:00:02]} 26. a5 {[%emt 0:02:23]} h6 {[%emt 0:00:09]} 27. Qc5 {[%emt 0:01:01]} Rc8 {[%emt 0:02:01]} 28. Qe7 {[%emt 0:01:40]} Rb8 {[%emt 0:01:23]} 29. Rf1 {[%emt 0:08:22]} Qxa5 {[%emt 0:00:51]} 30. Qxf7+ {[%emt 0:01:12]} Kh8 {[%emt 0:01:18]} 31. Qf4 {[%emt 0:00:47]} Rd8 {[%emt 0:01:13]} 32. Qe5 {[%emt 0:01:48]} Qb6+ {[%emt 0:01:30]} 33. Kg2 {[%emt 0:04:32]} Qc6+ {[%emt 0:01:19]} 34. Kg1 {[%emt 0:03:50]} Re8 {[%emt 0:00:36]} 35. Qf4 {[%emt 0:02:04]} Qc5+ {[%emt 0:00:24]} 36. Kg2 {[%emt 0:02:32]} Re2+ {[%emt 0:01:18]} 37. Rf2 {[%emt 0:00:03]} Rxf2+ {[%emt 0:01:15]} 38. Qxf2 {[%emt 0:00:05]} Qd5+ {[%emt 0:00:42]} 39. Qf3 {[%emt 0:00:16]} Qd2+ {[%emt 0:00:14]} 40. Qf2 {[%emt 0:00:00]} Qd3 {[%emt 0:00:00]} 41. h4 {[%emt 0:17:08]} Kh7 {[%emt 0:02:42]} 42. Qc5 {[%emt 0:01:20]} Qd2+ {[%emt 0:01:04]} 43. Kf3 {[%emt 0:00:53]} Qxb2 {[%emt 0:02:00]} 44. Qf5+ {[%emt 0:00:06]} Kg8 {[%emt 0:00:19]} 45. Qc8+ {[%emt 0:00:36]} Kf7 {[%emt 0:00:08]} 46. Qd7+ {[%emt 0:00:35]} Kg8 {[%emt 0:01:17]} 47. Qc8+ {[%emt 0:00:34]} Kh7 {[%emt 0:00:06]} 48. Qf5+ {[%emt 0:00:50]} g6 {[%emt 0:00:05]} 49. Qd7+ {[%emt 0:00:06]} Qg7 {[%emt 0:00:06]} 50. Qxb5 {[%emt 0:00:05]} Qc7 {[%emt 0:00:09]} 51. h5 {[%emt 0:05:19]} c3 {[%emt 0:02:10]} 52. Qd3 {[%emt 0:00:23]} Qc6+ {[%emt 0:00:49]} 53. Ke2 {[%emt 0:00:22]} c2 {[%emt 0:01:12]} 54. hxg6+ {[%emt 0:03:49]} Kg7 {[%emt 0:00:29]} 55. Qd4+ {[%emt 0:00:32]} Kxg6 {[%emt 0:00:19]} 56. Qg4+ {[%emt 0:00:41]} Kf7 {[%emt 0:00:08]} 57. Qf4+ {[%emt 0:00:44]} Ke7 {[%emt 0:00:05]} 58. Qc1 {[%emt 0:00:26]} Qc3 {[%emt 0:02:23]} 59. Kf2 {[%emt 0:01:11]} Ke6 {[%emt 0:03:10]} 60. Ke2 {[%emt 0:02:49]} Kd5 {[%emt 0:00:44]} 61. g4 {[%emt 0:01:10]} Ke4 {[%emt 0:03:40]} 62. Qh1+ {[%emt 0:02:26]} Kd4 {[%emt 0:00:06]} 63. Qg1+ {[%emt 0:00:16]} Kc4 {[%emt 0:00:04]} 64. Qc1 {[%emt 0:00:24]} Kb3 {[%emt 0:00:14]} 65. Kf2 {[%emt 0:00:26]} Qd3 {[%emt 0:03:17]} 66. Qxh6 {[%emt 0:00:35]} Qd4+ {[%emt 0:00:07]} 67. Kg2 {[%emt 0:00:24]} Kb2 {[%emt 0:00:03]} 0-1